bitfinex/quotes_ETHUSD_20241103
["timestamp","ask_amount","ask_price","bid_price","bid_amount"]
[1730631173342,8.13398,2458.9,2458.6,0.7702]
[1730631174176,4.06698,2458.9,2458.6,0.7702]
[1730631174375,8.13397,2458.9,2458.6,0.7702]
[1730631174587,4.06698,2458.9,2458.6,0.7702]
[1730631177687,4.87334,2459.1,2458.6,0.7702]
[1730631177887,4.0667,2459.0,2458.6,4.83755]
[1730631178469,4.0667,2459.0,2458.6,0.7702]
[1730631178679,4.0665,2459.2,2458.7,4.89738]
[1730631179260,4.0666,2459.1,2458.7,4.89738]
[1730631179794,4.06632,2459.3,2458.8,4.89713]
[1730631180026,4.06616,2459.4,2458.9,4.06676]
[1730631180165,4.06616,2459.4,2459.0,0.8302]
[1730631180489,4.06645,2459.2,2459.0,0.8302]
[1730631184564,4.06645,2459.2,2458.8,4.89713]
[1730631187101,8.13292,2459.2,2458.8,0.8302]
[1730631187614,0.7768,2459.3,2458.6,1.67645798]
[1730631187615,4.06703,2458.8,2458.6,1.67645798]
[1730631187815,4.06703,2458.8,2458.7,0.70311692]
[1730631187975,4.06703,2458.8,2458.6,0.8302]
[1730631188315,4.06703,2458.8,2458.7,0.41738028]
[1730631188679,4.06686,2458.9,2458.7,0.41738028]
[1730631188875,4.06686,2458.9,2458.8,0.41738028]
[1730631189209,4.06686,2458.9,2458.8,0.16052076]
[1730631189524,4.06686,2458.9,2458.8,0.41738028]
[1730631189708,4.06686,2458.9,2458.8,0.16052076]
[1730631189901,4.06652,2459.1,2458.8,0.41738028]
[1730631190213,4.06652,2459.1,2458.7,0.08134013]
[1730631190214,4.06652,2459.1,2458.9,0.16052076]
[1730631190415,4.06652,2459.1,2459.0,0.16052076]
[1730631192229,4.06652,2459.1,2459.0,0.16053201]
[1730631194221,4.06637,2459.2,2459.0,0.16053201]
[1730631194392,4.06637,2459.2,2459.1,0.16053201]
[1730631195429,4.0663,2459.3,2459.1,0.16053201]
[1730631195630,4.0663,2459.3,2458.9,1.02497752]
[1730631195836,4.0663,2459.3,2458.9,1.77675896]
[1730631196037,4.0663,2459.3,2459.0,0.16049331]
[1730631196347,4.0663,2459.3,2459.1,0.16049331]
[1730631196556,4.0663,2459.3,2458.9,1.02491559]
[1730631196762,4.06634,2459.3,2459.0,0.16049202]
[1730631197054,4.06634,2459.3,2459.1,0.16049202]
[1730631197218,4.06634,2459.3,2458.9,1.02491559]
[1730631197543,4.06634,2459.3,2459.0,0.1604863]
[1730631197744,4.83575,2459.4,2459.1,0.1604863]
[1730631197920,4.83575,2459.4,2459.0,4.06669]
[1730631198129,4.83575,2459.4,2459.1,0.16048594]
[1730631198349,4.83575,2459.4,2459.0,4.06669]
[1730631198657,4.83575,2459.4,2459.1,0.16047752]
[1730631198804,4.06605,2459.4,2459.0,1.01672184]
[1730631199008,4.06605,2459.4,2459.1,0.16047633]
[1730631199254,4.06605,2459.4,2459.0,1.01672184]
[1730631199406,8.13223,2459.4,2459.0,1.01672184]
[1730631199609,8.13223,2459.4,2459.1,0.16047084]
[1730631199843,8.13223,2459.4,2459.0,1.01672184]
[1730631200018,4.0662,2459.3,2459.1,0.1604685]
[1730631200219,4.0662,2459.3,2459.0,1.01672184]
[1730631200419,4.0662,2459.3,2459.1,0.16045944]
[1730631200755,4.0662,2459.3,2459.0,1.01672184]
[1730631200950,4.0662,2459.3,2459.1,0.16046266]
[1730631201255,4.0662,2459.3,2459.0,1.01672184]
[1730631201459,4.0662,2459.3,2459.1,0.16045313]
[1730631201611,4.0662,2459.3,2459.0,1.01672184]
[1730631201947,4.0662,2459.3,2459.1,0.16045817]
[1730631202260,4.06636,2459.2,2458.9,0.7681]
[1730631202411,4.06636,2459.2,2459.0,0.16045409]
[1730631202628,4.06636,2459.2,2459.1,0.16045409]
[1730631203365,4.06636,2459.2,2458.9,1.36190976]
[1730631203555,4.06636,2459.2,2459.1,0.16044976]
[1730631205731,4.0662,2459.3,2459.1,0.16044976]
[1730631205932,4.0662,2459.3,2458.9,5.51001974]
[1730631206171,4.0662,2459.3,2459.0,1.14380932]
[1730631206394,4.0662,2459.3,2459.1,0.16044175]
[1730631206570,4.0662,2459.3,2458.9,5.51001974]
[1730631206936,4.0662,2459.3,2459.0,0.16044405]
[1730631207271,8.13248,2459.3,2459.1,0.16044405]
[1730631207572,8.13248,2459.3,2458.9,0.7681]
[1730631207786,8.13248,2459.3,2459.0,0.16044827]
[1730631207939,8.13248,2459.3,2459.1,0.16044827]
[1730631208138,8.13248,2459.3,2458.9,1.36190044]
[1730631208376,8.13248,2459.3,2459.0,0.16045258]
[1730631208684,4.0662,2459.3,2459.1,0.16045258]
[1730631208841,4.0662,2459.3,2458.9,5.68539683]
[1730631209186,4.0662,2459.3,2459.0,0.16045422]
[1730631209482,4.0662,2459.3,2459.1,0.16045422]
[1730631209634,4.0662,2459.3,2458.9,5.68539683]
[1730631209981,4.06652,2459.1,2459.0,0.16046407]
[1730631213248,4.0665,2459.2,2459.0,0.16046407]
[1730631213478,4.0665,2459.2,2458.8,0.25673639]
[1730631213479,4.0665,2459.2,2458.9,0.25673639]
[1730631213679,8.133,2459.2,2459.0,0.16055592]
[1730631213988,8.133,2459.2,2459.1,0.16055592]
[1730631214486,4.0665,2459.2,2459.1,0.16055592]
[1730631217242,4.0665,2459.2,2458.8,1.0552623]
[1730631217448,4.0665,2459.2,2459.1,0.16059428]
[1730631217876,4.87722,2459.3,2459.1,0.16059428]
[1730631218073,4.87722,2459.3,2459.0,0.25698746]
[1730631218290,4.87722,2459.3,2459.1,0.16060293]
[1730631218589,4.87722,2459.3,2459.0,1.39609727]
[1730631218800,4.8769,2459.5,2459.1,4.22709204]
[1730631218949,8.94287,2459.5,2459.2,0.16062204]
[1730631219146,8.94287,2459.5,2459.1,0.25698859]
[1730631219453,4.8769,2459.5,2459.2,0.16059973]
[1730631219664,4.8769,2459.5,2459.3,0.16059973]
[1730631219845,4.8769,2459.5,2459.1,0.25698859]
[1730631220046,4.8769,2459.5,2459.2,0.16061672]
[1730631220285,4.8769,2459.5,2459.3,0.16061672]
[1730631220592,4.8769,2459.5,2459.0,6.01914175]
[1730631220793,4.8769,2459.5,2459.1,0.60191418]
[1730631220993,4.8769,2459.5,2459.1,0.76255273]
[1730631221310,4.0659,2459.5,2459.2,0.16063855]
[1730631221602,4.87661,2459.7,2459.3,0.97413855]
[1730631221895,4.0653,2459.9,2459.4,0.66467641]
[1730631221896,4.06538,2459.8,2459.4,0.66467641]
[1730631222189,4.06538,2459.8,2459.5,0.16063855]
[1730631222393,4.06538,2459.8,2459.6,0.16063964]
[1730631222696,4.06538,2459.8,2459.4,0.50403786]
[1730631222991,4.06538,2459.8,2459.5,0.16064988]
[1730631223286,4.06538,2459.8,2459.4,0.76105652]
[1730631223487,4.06538,2459.8,2459.5,0.16064665]
[1730631223791,4.06554,2459.7,2459.6,0.16064665]
[1730631224147,4.06554,2459.7,2459.4,0.76106351]
[1730631224351,4.06554,2459.7,2459.5,0.16062252]
[1730631224551,4.8896,2459.9,2459.5,0.5801286]
[1730631224791,4.8896,2459.9,2459.6,0.16061607]
[1730631224990,4.8896,2459.9,2459.5,4.6459786]
[1730631226396,4.065,2460.1,2459.6,4.87119]
[1730631226397,4.06504,2460.0,2459.6,4.87119]
[1730631226565,4.06506,2460.0,2459.6,0.8055]
[1730631226766,4.06506,2460.0,2459.6,1.40104565]
[1730631226965,4.06506,2460.0,2459.7,0.16056444]
[1730631227194,4.06506,2460.0,2459.6,0.8055]
[1730631228067,4.06522,2459.9,2459.6,0.8055]
[1730631228458,4.06506,2460.0,2459.6,0.8055]
[1730631229366,4.06524,2459.9,2459.6,0.8055]
[1730631234213,4.06506,2460.0,2459.6,0.8055]
[1730631234590,8.13021,2460.0,2459.6,0.8055]
[1730631238887,8.1302,2460.0,2459.6,0.8055]
[1730631240823,4.06506,2460.0,2459.6,0.8055]
[1730631241029,8.13022,2460.0,2459.6,0.8055]
[1730631241185,4.06537,2459.8,2459.6,0.8055]
[1730631241391,1.637343,2459.8,2459.5,0.16039494]
[1730631241626,1.637343,2459.8,2459.3,0.16039494]
[1730631241627,4.0657,2459.6,2459.3,0.16039494]
[1730631241987,4.0657,2459.6,2459.2,0.8055]
[1730631242189,4.0657,2459.6,2459.3,0.16042785]
[1730631242530,4.0657,2459.6,2459.2,4.87182]
[1730631243825,0.8243,2459.5,2459.2,4.87182]
[1730631244919,4.89024,2459.5,2459.2,0.8055]
[1730631245233,0.8243,2459.5,2459.2,0.8055]
[1730631245389,4.06611,2459.4,2459.0,0.135292]
[1730631245732,4.06611,2459.4,2459.0,3.135292]
[1730631246095,4.06611,2459.4,2459.1,0.16046263]
[1730631246293,4.06611,2459.4,2459.0,3.135292]
[1730631246535,4.06611,2459.4,2459.0,3.0]
[1730631247289,4.961735,2459.4,2458.9,3.8055]
[1730631247587,4.06634,2459.3,2458.9,3.8055]
[1730631247827,4.06634,2459.3,2458.9,7.87234]
[1730631247989,4.961735,2459.4,2458.9,3.8055]
[1730631248193,4.06628,2459.3,2459.0,0.16046183]
[1730631248529,4.06628,2459.3,2458.9,3.8055]
[1730631248716,4.06628,2459.3,2459.0,0.16046398]
[1730631248934,4.06628,2459.3,2458.9,3.8055]
[1730631249229,4.06628,2459.3,2459.0,0.16046332]
[1730631249433,4.06628,2459.3,2458.9,3.8055]
[1730631249635,4.06628,2459.3,2459.0,0.16046277]
[1730631249832,4.06628,2459.3,2458.9,8.12908937]
[1730631249992,4.06628,2459.3,2459.0,0.16045951]
[1730631250188,4.06628,2459.3,2458.9,8.12908937]
[1730631250528,4.06628,2459.3,2459.0,0.16046108]
[1730631250734,4.06628,2459.3,2459.1,0.16046108]
[1730631250937,4.06628,2459.3,2459.0,0.16046108]
[1730631251088,4.06628,2459.3,2458.9,9.09192694]
[1730631251293,4.06628,2459.3,2459.0,0.16046513]
[1730631251527,4.06628,2459.3,2458.9,9.09192694]
[1730631251725,4.06628,2459.3,2459.0,0.16047139]
[1730631251934,4.06628,2459.3,2458.9,9.09192694]
[1730631252224,4.06628,2459.3,2459.0,0.16047219]
[1730631252432,4.06628,2459.3,2458.9,9.09192694]
[1730631252627,4.06628,2459.3,2459.0,0.16047679]
[1730631252834,4.06628,2459.3,2458.9,9.09192694]
[1730631252993,4.06628,2459.3,2459.0,0.16047284]
[1730631253327,4.89022,2459.5,2459.1,0.16045817]
[1730631253535,8.95623,2459.5,2459.0,5.39853798]
[1730631253829,8.95623,2459.5,2459.1,0.16045471]
[1730631254026,8.95623,2459.5,2459.0,5.53382998]
[1730631254230,8.95623,2459.5,2459.1,0.16045329]
[1730631254398,8.95623,2459.5,2459.0,5.53382998]
[1730631254598,4.89022,2459.5,2459.1,0.16045813]
[1730631254832,4.89022,2459.5,2459.0,5.53382998]
[1730631255033,4.89022,2459.5,2459.1,0.1604566]
[1730631255229,4.89022,2459.5,2459.0,5.53382998]
[1730631255432,4.89022,2459.5,2459.1,0.160459]
[1730631255641,4.06608,2459.4,2459.0,5.53382998]
[1730631255795,4.06608,2459.4,2459.1,0.16045899]
[1730631256001,4.06608,2459.4,2459.0,5.53382998]
[1730631256222,4.06608,2459.4,2459.1,0.16046374]
[1730631256437,4.89022,2459.5,2459.0,5.53382998]
[1730631256733,4.89022,2459.5,2459.1,0.1604681]
[1730631256896,4.89022,2459.5,2459.0,5.53382998]
[1730631256897,8.95617,2459.5,2459.0,5.53382998]
[1730631257099,8.95617,2459.5,2459.1,0.16047054]
[1730631257295,4.89022,2459.5,2459.0,5.53382998]
[1730631257494,4.89022,2459.5,2459.1,0.16047843]
[1730631257744,4.89022,2459.5,2459.0,9.60042998]
[1730631257934,4.89022,2459.5,2459.1,1.50105161]
[1730631258132,4.89022,2459.5,2459.1,1.340593]
[1730631258330,4.06606,2459.4,2459.1,1.340593]
[1730631258747,0.8243,2459.5,2459.0,0.135292]
[1730631259004,0.7988,2459.1,2459.0,0.135292]
[1730631259253,0.7988,2459.1,2459.0,0.29578527]
[1730631259411,0.7988,2459.1,2459.0,0.135292]
[1730631260606,4.86532,2459.1,2459.0,0.135292]
[1730631265940,4.06636,2459.2,2459.0,0.135292]
[1730631266584,8.1328,2459.2,2459.0,0.135292]
[1730631266741,4.84921,2459.3,2459.0,0.135292]
[1730631268043,4.06637,2459.2,2459.0,0.135292]
[1730631270880,4.06652,2459.1,2459.0,0.135292]
[1730631271082,4.84952,2459.1,2459.0,0.135292]
[1730631280574,4.06652,2459.1,2459.0,0.135292]
[1730631282783,4.06637,2459.2,2459.0,0.135292]
[1730631287909,8.13284,2459.2,2459.0,0.135292]
[1730631288089,4.06637,2459.2,2459.0,0.135292]
[1730631288428,4.06621,2459.3,2459.1,0.16065826]
[1730631288723,8.13226,2459.4,2459.1,0.7771]
[1730631288933,4.06612,2459.4,2459.1,1.28315711]
[1730631292377,4.06607,2459.4,2459.1,1.28315711]
[1730631292585,4.06607,2459.4,2459.2,0.16072717]
[1730631292820,4.06607,2459.4,2459.1,1.28315711]
[1730631293131,4.06607,2459.4,2459.2,0.70921604]
[1730631293333,4.06607,2459.4,2459.2,0.54851291]
[1730631294423,8.13221,2459.4,2459.2,0.54851291]
[1730631294729,4.06607,2459.4,2459.1,0.7771]
[1730631295085,4.06607,2459.4,2459.2,0.16070443]
[1730631295323,4.06607,2459.4,2459.1,0.7771]
[1730631295529,4.06607,2459.4,2459.2,0.16070143]
[1730631295700,4.06607,2459.4,2459.3,0.16070143]
[1730631296024,4.06607,2459.4,2459.1,0.7771]
[1730631296185,4.06607,2459.4,2459.2,0.1607039]
[1730631296186,8.13222,2459.4,2459.2,0.1607039]
[1730631296591,4.06627,2459.3,2459.1,1.5750232]
[1730631296744,4.06627,2459.3,2459.2,0.16070604]
[1730631300755,4.85767,2459.3,2459.2,0.16070604]
[1730631300964,4.85792,2459.1,2459.0,0.135292]
[1730631301112,4.85792,2459.1,2459.0,0.29603797]
[1730631301636,4.85792,2459.1,2459.0,0.135292]
[1730631313339,4.85404456,2459.1,2459.0,0.135292]
[1730631325799,4.06264456,2459.1,2459.0,0.135292]
[1730631329661,6.10904502,2459.1,2459.0,0.135292]
[1730631330397,4.81434456,2459.1,2459.0,0.135292]
[1730631342027,4.81042993,2459.1,2459.0,0.135292]
[1730631345034,4.05872993,2459.1,2459.0,0.135292]
[1730631365797,4.89082993,2459.1,2459.0,0.135292]
[1730631366700,7.45243147,2459.1,2459.0,0.135292]
[1730631366906,8.60431362,2459.1,2459.0,0.135292]
[1730631369282,8.60465591,2459.1,2459.0,0.135292]
[1730631371010,4.05872993,2459.1,2459.0,0.135292]
[1730631371187,6.62067376,2459.1,2459.0,0.135292]
[1730631373780,6.62096287,2459.1,2459.0,0.135292]
[1730631378506,6.62086569,2459.1,2459.0,0.135292]
[1730631380310,4.05872993,2459.1,2459.0,0.135292]
[1730631382346,6.62086569,2459.1,2459.0,0.135292]
[1730631382865,4.05872993,2459.1,2459.0,0.135292]
[1730631383664,5.20978779,2459.1,2459.0,0.135292]
[1730631383875,7.77184649,2459.1,2459.0,0.135292]
[1730631384521,8.59524649,2459.1,2459.0,0.135292]
[1730631387159,6.03318779,2459.1,2459.0,0.135292]
[1730631387661,8.59524649,2459.1,2459.0,0.135292]
[1730631387821,6.03318779,2459.1,2459.0,0.135292]
[1730631388624,8.59528446,2459.1,2459.0,0.135292]
[1730631392315,6.03318779,2459.1,2459.0,0.135292]
[1730631392517,6.62082652,2459.1,2459.0,0.135292]
[1730631394561,4.05872993,2459.1,2459.0,0.135292]
[1730631395158,6.62082652,2459.1,2459.0,0.135292]
[1730631395471,4.05872993,2459.1,2459.0,0.135292]
[1730631407190,6.62094921,2459.1,2459.0,0.135292]
[1730631411860,6.6218575,2459.1,2459.0,0.135292]
[1730631415162,7.77202225,2459.1,2459.0,0.135292]
[1730631415568,6.00209468,2459.1,2459.0,0.135292]
[1730631416013,8.99283957,2459.1,2459.0,0.135292]
[1730631416777,6.00209468,2459.1,2459.0,0.135292]
[1730631418177,4.85192993,2459.1,2459.0,0.135292]
[1730631418502,4.05872993,2459.1,2459.0,0.135292]
[1730631418709,6.62169319,2459.1,2459.0,0.135292]
[1730631419996,6.62170063,2459.1,2459.0,0.945992]
[1730631420510,6.62162865,2459.1,2459.0,0.945992]
[1730631420716,6.62162865,2459.1,2459.0,0.135292]
[1730631421299,6.62160022,2459.1,2459.0,0.135292]
[1730631422383,4.05872993,2459.1,2459.0,0.135292]
[1730631423220,6.62160022,2459.1,2459.0,0.135292]
[1730631423620,6.6215807,2459.1,2459.0,0.135292]
[1730631424128,4.05872993,2459.1,2459.0,0.135292]
[1730631424288,6.6215807,2459.1,2459.0,0.135292]
[1730631424812,4.05872993,2459.1,2459.0,0.135292]
[1730631425333,6.6215807,2459.1,2459.0,0.135292]
[1730631426498,4.05872993,2459.1,2459.0,0.135292]
[1730631426705,6.6215807,2459.1,2459.0,0.135292]
[1730631427293,4.05872993,2459.1,2459.0,0.135292]
[1730631427999,6.6215807,2459.1,2459.0,0.135292]
[1730631428218,4.05872993,2459.1,2459.0,0.135292]
[1730631429305,6.62157499,2459.1,2459.0,0.135292]
[1730631431102,8.06869008,2459.1,2459.0,0.135292]
[1730631433636,4.05872993,2459.1,2459.0,0.135292]
[1730631441023,6.62157499,2459.1,2459.0,0.135292]
[1730631441721,7.45157499,2459.1,2459.0,0.135292]
[1730631447909,7.45170281,2459.1,2459.0,0.135292]
[1730631452334,4.88872993,2459.1,2459.0,0.135292]
[1730631452521,8.34722587,2459.1,2459.0,0.135292]
[1730631456055,7.95424192,2459.1,2459.0,0.135292]
[1730631456254,11.74728986,2459.1,2459.0,0.135292]
[1730631458230,8.75714192,2459.1,2459.0,0.135292]
[1730631458429,11.74670532,2459.1,2459.0,0.135292]
[1730631458844,11.74623853,2459.1,2459.0,0.135292]
[1730631459772,12.29623853,2459.1,2459.0,0.135292]
[1730631465768,9.30714192,2459.1,2459.0,0.135292]
[1730631466149,12.29412563,2459.1,2459.0,0.135292]
[1730631467281,11.74412563,2459.1,2459.0,0.135292]
[1730631467570,7.05872993,2459.1,2459.0,0.135292]
[1730631468065,9.61860157,2459.1,2459.0,0.135292]
[1730631468643,7.05872993,2459.1,2459.0,0.135292]
[1730631469054,9.61858367,2459.1,2459.0,0.135292]
[1730631469423,7.05872993,2459.1,2459.0,0.135292]
[1730631471500,8.55223029,2459.1,2459.0,0.135292]
[1730631488801,4.05872993,2459.1,2459.0,0.955092]
[1730631520751,4.05872993,2459.1,2459.0,0.135292]
[1730631526340,4.05872993,2459.1,2459.0,0.916292]
[1730631526745,4.05872993,2459.1,2459.0,0.135292]
[1730631527547,11.28938652,2459.1,2459.0,0.135292]
[1730631528174,11.28991338,2459.1,2459.0,0.135292]
[1730631528870,8.72913192,2459.1,2459.0,0.135292]
[1730631529059,11.28970484,2459.1,2459.0,0.135292]
[1730631531274,8.72913192,2459.1,2459.0,0.135292]
[1730631533445,11.71609562,2459.1,2459.0,0.135292]
[1730631535652,12.26609562,2459.1,2459.0,2e-06]
[1730631535851,9.27913192,2459.1,2459.0,2e-06]
[1730631536374,12.80739096,2459.1,2459.0,2e-06]
[1730631538337,9.27913192,2459.1,2459.0,2e-06]
[1730631538537,12.80739096,2459.1,2459.0,2e-06]
[1730631538736,9.27913192,2459.1,2459.0,2e-06]
[1730631540246,17.41233192,2459.1,2459.0,2e-06]
[1730631541850,17.94109308,2459.1,2459.0,2e-06]
[1730631542060,21.46935212,2459.1,2459.0,2e-06]
[1730631542881,18.452543,2459.1,2459.0,2e-06]
[1730631543068,18.87712496,2459.1,2459.0,2e-06]
[1730631544358,22.39679874,2459.1,2459.0,2e-06]
[1730631544597,18.87712496,2459.1,2459.0,2e-06]
[1730631547863,22.39655086,2459.1,2459.0,2e-06]
[1730631548063,22.46704863,2459.1,2459.0,2e-06]
[1730631549099,18.94762273,2459.1,2459.0,2e-06]
[1730631551073,19.58466724,2459.1,2459.0,2e-06]
[1730631554302,18.94762273,2459.1,2459.0,2e-06]
[1730631554604,22.46599297,2459.1,2459.0,2e-06]
[1730631554803,23.25899297,2459.1,2459.0,2e-06]
[1730631555175,22.20754305,2459.1,2459.0,2e-06]
[1730631555364,20.88578189,2459.1,2459.0,2e-06]
[1730631555565,17.36741165,2459.1,2459.0,2e-06]
[1730631556320,14.36741165,2459.1,2459.0,2e-06]
[1730631556521,13.94282969,2459.1,2459.0,2e-06]
[1730631556723,14.48282969,2459.1,2459.0,2e-06]
[1730631557014,14.42233192,2459.1,2459.0,2e-06]
[1730631557377,13.87233192,2459.1,2459.0,2e-06]
[1730631557618,16.09243192,2459.1,2459.0,2e-06]
[1730631559327,16.64243192,2459.1,2459.0,2e-06]
[1730631565540,16.09243192,2459.1,2459.0,2e-06]
[1730631570308,19.07231009,2459.1,2459.0,2e-06]
[1730631572456,16.09243192,2459.1,2459.0,2e-06]
[1730631572748,19.07500572,2459.1,2459.0,2e-06]
[1730631573326,16.64243192,2459.1,2459.0,2e-06]
[1730631574852,20.16699559,2459.1,2459.0,2e-06]
[1730631578667,20.16877717,2459.1,2459.0,2e-06]
[1730631579658,20.16982474,2459.1,2459.0,2e-06]
[1730631580021,20.16970309,2459.1,2459.0,2e-06]
[1730631580213,16.60970309,2459.1,2459.0,0.782302]
[1730631580415,15.7192011,2459.1,2459.0,0.782302]
[1730631580957,12.19192993,2459.1,2459.0,0.782302]
[1730631581344,15.7192011,2459.1,2459.0,0.782302]
[1730631581521,15.19192993,2459.1,2459.0,0.782302]
[1730631582239,15.19192993,2459.1,2459.0,2e-06]
[1730631584235,17.47248904,2459.1,2459.0,2e-06]
[1730631587431,15.19192993,2459.1,2459.0,2e-06]
[1730631590193,18.71971634,2459.1,2459.0,2e-06]
[1730631591319,15.19192993,2459.1,2459.0,2e-06]
[1730631596502,18.72174146,2459.1,2459.0,2e-06]
[1730631596809,15.19192993,2459.1,2459.0,2e-06]
[1730631600311,4.06685,2458.9,2458.8,0.722642]
[1730631600506,7.05477995,2458.9,2458.8,0.722642]
[1730631600949,7.05495693,2458.9,2458.8,0.722642]
[1730631604537,7.05486378,2458.9,2458.8,0.722642]
[1730631606224,4.06685,2458.9,2458.8,0.722642]
[1730631609549,6.62760081,2458.9,2458.8,0.722642]
[1730631612148,4.06685,2458.9,2458.8,0.722642]
[1730631622511,4.06752,2458.5,2458.4,0.832]
[1730631623069,4.06768,2458.4,2458.3,0.0380076]
[1730631624267,5.62029759,2458.4,2458.3,0.0380076]
[1730631627310,6.43109759,2458.4,2458.3,0.0380076]
[1730631627496,14.56429759,2458.4,2458.3,0.0380076]
[1730631628199,18.11429759,2458.4,2458.3,0.0380076]
[1730631628522,21.11044489,2458.4,2458.3,7.6e-06]
[1730631629009,18.12429759,2458.4,2458.3,7.6e-06]
[1730631629218,21.10883862,2458.4,2458.3,7.6e-06]
[1730631629516,21.10875827,2458.4,2458.3,7.6e-06]
[1730631629806,21.10877753,2458.4,2458.3,7.6e-06]
[1730631631016,18.12429759,2458.4,2458.3,7.6e-06]
[1730631631186,21.10655846,2458.4,2458.3,7.6e-06]
[1730631633217,18.12429759,2458.4,2458.3,7.6e-06]
[1730631637213,20.67739949,2458.4,2458.3,7.6e-06]
[1730631637419,18.12429759,2458.4,2458.3,7.6e-06]
[1730631638187,20.67708189,2458.4,2458.3,7.6e-06]
[1730631639842,19.30628189,2458.4,2458.3,7.6e-06]
[1730631640035,15.20088,2458.4,2458.3,7.6e-06]
[1730631640212,12.20088,2458.4,2458.3,7.6e-06]
[1730631641836,15.20088,2458.4,2458.3,7.6e-06]
[1730631646169,15.20088,2458.4,2458.3,7.6e-06]
[1730631650248,11.1332,2458.4,2458.3,7.6e-06]
[1730631658762,15.03678629,2458.4,2458.3,7.6e-06]
[1730631658983,14.34323937,2458.4,2458.3,7.6e-06]
[1730631664292,17.32234312,2458.4,2458.3,7.6e-06]
[1730631664592,14.34323937,2458.4,2458.3,7.6e-06]
[1730631665104,17.32234312,2458.4,2458.3,7.6e-06]
[1730631665450,14.34323937,2458.4,2458.3,7.6e-06]
[1730631668505,17.86444404,2458.4,2458.3,7.6e-06]
[1730631669220,14.34323937,2458.4,2458.3,7.6e-06]
[1730631670006,19.34323937,2458.4,2458.3,7.6e-06]
[1730631670228,24.55131318,2458.4,2458.3,7.6e-06]
[1730631670389,20.32282816,2458.4,2458.3,7.6e-06]
[1730631671576,0.7645,2457.4,2457.0,0.8298602]
[1730631671782,8.1332,2457.3,2457.0,0.8298602]
[1730631672017,3.0,2457.2,2457.0,0.0617602]
[1730631672424,11.8977,2457.1,2457.0,0.0617602]
[1730631677013,11.1332,2457.1,2457.0,0.0617602]
[1730631677185,11.1332,2457.1,2457.0,0.8212602]
[1730631683122,11.1332,2457.1,2457.0,0.0617602]
[1730631683325,12.36115163,2457.1,2457.0,0.0617602]
[1730631684856,13.12565163,2457.1,2457.0,0.0617602]
[1730631685805,13.67565163,2457.1,2457.0,0.0617602]
[1730631699548,13.74647895,2457.1,2457.0,0.0617602]
[1730631700282,0.7833,2456.6,2455.9,0.7668]
[1730631700786,3.0,2456.4,2455.9,0.7668]
[1730631705556,0.7626,2456.3,2455.9,0.7668]
[1730631706794,0.55,2456.2,2455.8,0.0617602]
[1730631707096,0.56,2456.0,2455.8,0.0617602]
[1730631707299,1.74586,2455.9,2455.8,0.0617602]
[1730631707658,12.88906,2455.9,2455.8,0.0617602]
[1730631713002,11.56646,2455.9,2455.8,0.0617602]
[1730631713205,11.1332,2455.9,2455.8,0.0617602]
[1730631715505,8.1332,2455.9,2455.8,0.8160602]
[1730631734583,8.13217819,2455.9,2455.8,0.8160602]
[1730631736579,8.13217819,2455.9,2455.8,0.0617602]
[1730631741277,8.94097819,2455.9,2455.8,0.0617602]
[1730631741480,9.75419601,2455.9,2455.8,0.0617602]
[1730631742086,13.30419601,2455.9,2455.8,0.0617602]
[1730631743144,3.0,2455.8,2454.9,0.7597]
[1730631743345,3.55,2455.6,2454.7,0.7597]
[1730631743590,0.8088,2455.2,2454.6,0.0617602]
[1730631743786,8.13217819,2455.1,2454.6,0.0617602]
[1730631744122,8.13217819,2455.1,2454.7,0.7597]
[1730631744766,8.94097819,2455.1,2454.7,0.7597]
[1730631746251,8.94097819,2455.1,2454.6,0.0617602]
[1730631748270,9.83507601,2455.1,2454.6,0.0617602]
[1730631748986,9.02627601,2455.1,2454.6,0.0617602]
[1730631749157,8.13217819,2455.1,2454.6,0.0617602]
[1730631751423,0.8228,2455.0,2454.6,0.0617602]
[1730631752090,8.13217819,2455.1,2454.6,0.0617602]
[1730631752291,8.13217819,2455.1,2454.7,0.7878]
[1730631756823,8.13217819,2455.1,2454.8,0.08146257]
[1730631756983,8.13217819,2455.1,2454.9,0.7878]
[1730631765069,8.13217819,2455.1,2454.9,0.7978]
[1730631767234,8.13217819,2455.1,2454.9,0.87925841]
[1730631768899,8.13217819,2455.1,2455.0,0.7978]
[1730631769093,0.64976,2455.8,2455.0,0.7978]
[1730631769392,0.64976,2455.8,2455.1,0.86924637]
[1730631769896,0.64976,2455.8,2455.1,0.7878]
[1730631770760,0.64976,2455.8,2455.1,0.86924637]
[1730631770918,0.64976,2455.8,2455.1,0.7878]
[1730631771125,0.64976,2455.8,2455.2,0.08144637]
[1730631771418,0.64976,2455.8,2455.3,0.7878]
[1730631771727,0.55,2456.4,2455.4,0.08144574]
[1730631771927,0.55,2456.2,2455.4,0.08144574]
[1730631772128,0.8228,2456.1,2455.4,0.08144574]
[1730631772863,0.05,2455.8,2455.4,0.01]
[1730631773065,0.05,2455.8,2455.6,0.7878]
[1730631773660,0.05,2455.8,2455.7,0.7878]
[1730631773967,0.05,2455.8,2455.7,0.86922706]
[1730631775480,0.05,2455.8,2455.7,0.87922706]
[1730631775633,0.8228,2456.5,2455.7,0.82922706]
[1730631776475,0.8228,2456.5,2455.7,0.81922706]
[1730631776646,0.8228,2456.5,2455.7,0.82922706]
[1730631779000,0.8228,2456.5,2455.7,0.7478]
[1730631779670,0.8228,2456.5,2455.8,0.08142488]
[1730631779872,0.8228,2456.5,2455.7,0.7478]
[1730631781216,0.8228,2456.5,2455.7,0.7378]
[1730631781387,0.8228,2456.5,2455.7,0.7478]
[1730631781710,0.8228,2456.5,2455.7,0.7378]
[1730631781873,0.8228,2456.5,2455.7,0.7478]
[1730631782586,0.8228,2456.5,2455.8,0.86222485]
[1730631782783,0.7769,2456.8,2455.8,0.7808]
[1730631783315,0.7769,2456.8,2456.0,0.7708]
[1730631783926,0.7769,2456.8,2456.0,0.7808]
[1730631784114,0.7769,2456.8,2456.2,0.7708]
[1730631784810,0.7769,2457.5,2456.4,0.7708]
[1730631785006,0.33252546,2457.4,2456.6,0.7708]
[1730631785247,0.7769,2457.5,2456.7,0.08140215]